[Event "MČR družstev mladších žáků 2024"]
[Site "Harrachov, Czech Republic"]
[Date "2024.06.15"]
[Round "5.28"]
[White "Kurka Stepan"]
[Black "Strazhnyk Yevhen"]
[Result "1/2-1/2"]
[TimeControl "25+10"]
[WhiteFideId "23769149"]
[BlackFideId "23771305"]
[WhiteElo "1180"]
[BlackElo "1150"]

1. e4 {[%clk 00:25:17]} {[%emt 00:00:02]} e5 {[%clk 00:25:18]} {[%emt
00:00:02]} 2. Nf3 {[%clk 00:25:20]} {[%emt 00:00:07]} Nc6 {[%clk 00:25:25]}
{[%emt 00:00:03]} 3. Nc3 {[%clk 00:25:07]} {[%emt 00:00:23]} Nf6 {[%clk
00:25:26]} {[%emt 00:00:09]} 4. Bb5 {[%clk 00:25:14]} {[%emt 00:00:03]} d6
{[%clk 00:25:06]} {[%emt 00:00:30]} 5. d3 {[%clk 00:25:06]} {[%emt 00:00:17]}
Bd7 {[%clk 00:25:08]} {[%emt 00:00:08]} 6. h3 {[%clk 00:24:59]} {[%emt
00:00:18]} g6 {[%emt 00:00:55]} 7. O-O {[%clk 00:25:01]} {[%emt 00:00:06]} Bg7
{[%clk 00:24:29]} {[%emt 00:00:05]} 8. Bxc6 {[%clk 00:24:27]} {[%emt 00:00:44]}
Bxc6 {[%clk 00:24:16]} {[%emt 00:00:24]} 9. Bg5 {[%clk 00:23:48]} {[%emt
00:00:49]} O-O {[%clk 00:24:02]} {[%emt 00:00:24]} 10. Re1 {[%clk 00:22:51]}
{[%emt 00:01:07]} Qd7 {[%clk 00:23:08]} {[%emt 00:01:04]} 11. Qd2 {[%clk
00:22:31]} {[%emt 00:00:31]} Nh5 {[%clk 00:22:11]} {[%emt 00:01:06]} 12. Rad1
{[%clk 00:21:54]} {[%emt 00:00:46]} Qe6 {[%clk 00:21:13]} {[%emt 00:01:06]} 13.
Bh6 {[%clk 00:20:39]} {[%emt 00:01:28]} Nf4 {[%clk 00:20:03]} {[%emt 00:01:20]}
14. Bxg7 {[%clk 00:19:54]} {[%emt 00:00:55]} Kxg7 {[%clk 00:20:07]} {[%emt
00:00:06]} 15. Ng5 {[%clk 00:18:57]} {[%emt 00:01:07]} Qf6 {[%clk 00:19:28]}
{[%emt 00:00:45]} 16. Nf3 {[%clk 00:19:01]} {[%emt 00:00:11]} Nxh3+ {[%clk
00:18:29]} {[%emt 00:01:08]} 17. Kf1 {[%clk 00:17:40]} {[%emt 00:01:31]} Nf4
{[%clk 00:17:58]} {[%emt 00:00:16]} 18. d4 {[%clk 00:16:12]} {[%emt 00:02:04]}
exd4 {[%emt 00:01:41]} 19. Nxd4 {[%emt 00:00:16]} Qh4 {[%clk 00:15:37]} {[%emt
00:00:11]} 20. f3 {[%clk 00:15:30]} {[%emt 00:01:13]} Qh1+ {[%clk 00:14:55]}
{[%emt 00:00:53]} 21. Kf2 {[%clk 00:15:27]} {[%emt 00:00:14]} Qxg2+ {[%clk
00:14:59]} {[%emt 00:00:05]} 22. Ke3 {[%clk 00:15:31]} {[%emt 00:00:06]} Qg5
{[%clk 00:14:59]} {[%emt 00:00:09]} 23. Kf2 {[%clk 00:15:32]} {[%emt 00:00:10]}
Nh3+ {[%clk 00:14:44]} {[%emt 00:00:25]} 24. Kf1 {[%clk 00:15:30]} {[%emt
00:00:12]} Qg1+ {[%clk 00:13:55]} {[%emt 00:00:53]} 25. Ke2 {[%clk 00:15:37]}
{[%emt 00:00:08]} Qf2+ {[%clk 00:13:22]} {[%emt 00:00:42]} 26. Kd3 {[%clk
00:15:44]} {[%emt 00:00:05]} Qxd2+ {[%clk 00:12:22]} {[%emt 00:01:09]} 27. Kxd2
{[%clk 00:15:47]} {[%emt 00:00:07]} Bd7 {[%clk 00:11:54]} {[%emt 00:00:33]} 28.
Nd5 {[%clk 00:15:41]} {[%emt 00:00:21]} c6 {[%clk 00:11:20]} {[%emt 00:00:44]}
29. Ne3 {[%clk 00:15:41]} {[%emt 00:00:11]} Nf4 {[%clk 00:10:59]} {[%emt
00:00:28]} 30. Kc1 {[%clk 00:15:31]} {[%emt 00:00:23]} Ne6 {[%clk 00:10:52]}
{[%emt 00:00:18]} 31. Ne2 {[%clk 00:15:22]} {[%emt 00:00:19]} d5 {[%clk
00:10:00]} {[%emt 00:01:02]} 32. exd5 {[%clk 00:15:21]} {[%emt 00:00:10]} cxd5
{[%clk 00:10:05]} {[%emt 00:00:05]} 33. Nxd5 {[%clk 00:15:28]} {[%emt
00:00:03]} Bb5 {[%clk 00:08:58]} {[%emt 00:01:16]} 34. Nec3 {[%clk 00:15:14]}
{[%emt 00:00:25]} Bc6 {[%clk 00:08:29]} {[%emt 00:00:37]} 35. Re3 {[%clk
00:14:08]} {[%emt 00:01:18]} Rad8 {[%clk 00:07:38]} {[%emt 00:01:01]} 1/2-1/2



[ePGN "0.1;DGT LiveChess/2.2.6"]

[Event "MČR družstev mladších žáků 2024"]
[Site "Harrachov, Czech Republic"]
[Date "2024.06.15"]
[Round "5.3"]
[White "Kolar Edvard"]
[Black "Moravec Rene"]
[Result "1-0"]
[TimeControl "25+10"]
[WhiteFideId "23746238"]
[BlackFideId "23745274"]
[WhiteElo "1553"]
[BlackElo "1295"]

1. e4 {[%clk 00:25:19]} c5 {[%clk 00:25:18]} {[%emt 00:00:02]} 2. Nf3 {[%clk
00:25:27]} {[%emt 00:00:02]} Nc6 {[%clk 00:25:24]} {[%emt 00:00:03]} 3. d4
{[%clk 00:25:36]} {[%emt 00:00:02]} cxd4 {[%clk 00:25:32]} {[%emt 00:00:03]} 4.
Nxd4 {[%clk 00:25:44]} {[%emt 00:00:01]} g6 {[%clk 00:25:40]} {[%emt 00:00:02]}
5. Nc3 {[%clk 00:25:47]} {[%emt 00:00:07]} Bg7 {[%clk 00:25:47]} {[%emt
00:00:02]} 6. Be3 {[%clk 00:25:56]} {[%emt 00:00:02]} Nf6 {[%clk 00:25:53]}
{[%emt 00:00:03]} 7. Bc4 {[%clk 00:26:00]} {[%emt 00:00:06]} O-O {[%clk
00:25:56]} {[%emt 00:00:08]} 8. Bb3 {[%clk 00:26:08]} {[%emt 00:00:03]} Ne8
{[%clk 00:25:25]} {[%emt 00:00:40]} 9. Qd2 {[%clk 00:26:09]} {[%emt 00:00:09]}
Nf6 {[%clk 00:25:14]} {[%emt 00:00:21]} 10. f3 {[%clk 00:26:02]} {[%emt
00:00:17]} d6 {[%clk 00:25:17]} {[%emt 00:00:05]} 11. O-O-O {[%clk 00:26:02]}
{[%emt 00:00:12]} a5 {[%clk 00:25:15]} {[%emt 00:00:12]} 12. h4 {[%clk
00:25:45]} {[%emt 00:00:28]} Bd7 {[%clk 00:25:11]} {[%emt 00:00:14]} 13. Nxc6
{[%clk 00:25:46]} {[%emt 00:00:09]} bxc6 {[%clk 00:25:20]} {[%emt 00:00:02]} 14.
h5 {[%clk 00:25:50]} {[%emt 00:00:05]} Nxh5 {[%clk 00:25:07]} {[%emt 00:00:23]}
15. Bh6 {[%clk 00:25:53]} {[%emt 00:00:07]} Be5 {[%clk 00:23:15]} {[%emt
00:02:02]} 16. Rxh5 {[%clk 00:24:42]} {[%emt 00:01:21]} gxh5 {[%clk 00:23:08]}
{[%emt 00:00:17]} 17. Qg5+ {[%clk 00:24:44]} {[%emt 00:00:08]} Kh8 {[%clk
00:22:48]} {[%emt 00:00:30]} 18. Bxf8 {[%clk 00:24:46]} {[%emt 00:00:08]} Qxf8
{[%clk 00:22:56]} {[%emt 00:00:02]} 19. Qxh5 {[%clk 00:24:52]} {[%emt
00:00:05]} Qg7 {[%clk 00:22:41]} {[%emt 00:00:25]} 20. Rh1 {[%clk 00:24:14]}
{[%emt 00:00:48]} a4 {[%clk 00:22:38]} {[%emt 00:00:13]} 21. Bxf7 {[%clk
00:24:07]} {[%emt 00:00:16]} a3 {[%clk 00:21:54]} {[%emt 00:00:52]} 22. Nd1
{[%clk 00:21:33]} {[%emt 00:02:48]} Rb8 {[%clk 00:19:07]} {[%emt 00:02:57]} 23.
b3 {[%clk 00:21:08]} {[%emt 00:00:34]} Rb5 {[%clk 00:13:18]} {[%emt 00:05:59]}
24. Qg6 {[%clk 00:19:43]} {[%emt 00:01:33]} Qxg6 {[%clk 00:12:58]} {[%emt
00:00:32]} 25. Bxg6 {[%clk 00:19:45]} {[%emt 00:00:08]} h6 {[%clk 00:12:52]}
{[%emt 00:00:16]} 26. Kb1 {[%clk 00:19:06]} {[%emt 00:00:49]} Kg7 {[%clk
00:12:49]} {[%emt 00:00:13]} 27. Bh5 {[%clk 00:18:49]} {[%emt 00:00:27]} Bd4
{[%clk 00:12:16]} {[%emt 00:00:38]} 28. f4 {[%clk 00:18:21]} {[%emt 00:00:42]}
e5 {[%clk 00:09:58]} {[%emt 00:02:28]} 29. f5 {[%clk 00:17:50]} {[%emt
00:00:41]} d5 {[%clk 00:09:02]} {[%emt 00:01:06]} 30. Bf3 {[%clk 00:17:31]}
{[%emt 00:00:29]} Be8 {[%clk 00:05:10]} {[%emt 00:04:02]} 31. Rf1 {[%clk
00:16:36]} {[%emt 00:01:05]} Kf6 {[%clk 00:05:09]} {[%emt 00:00:10]} 32. g4
{[%clk 00:15:23]} {[%emt 00:01:24]} Kg5 {[%clk 00:04:56]} {[%emt 00:00:23]} 33.
f6 {[%clk 00:13:52]} {[%emt 00:01:41]} Bf7 {[%clk 00:03:46]} {[%emt 00:00:38]}
34. Be2 {[%clk 00:13:48]} {[%emt 00:00:58]} Rb6 {[%clk 00:03:22]} {[%emt
00:00:30]} 35. c3 {[%clk 00:13:29]} {[%emt 00:00:32]} Bc5 {[%clk 00:02:57]}
{[%emt 00:00:32]} 36. Rf5+ {[%clk 00:13:24]} {[%emt 00:00:18]} Kg6 {[%clk
00:02:57]} {[%emt 00:00:08]} 37. exd5 {[%clk 00:12:36]} {[%emt 00:01:00]} cxd5
{[%clk 00:03:04]} {[%emt 00:00:03]} 38. Rxe5 {[%clk 00:12:22]} {[%emt
00:00:24]} Kxf6 {[%clk 00:02:51]} {[%emt 00:00:23]} 39. Rf5+ {[%clk 00:12:18]}
{[%emt 00:00:13]} Kg6 {[%clk 00:02:53]} {[%emt 00:00:06]} 40. Bd3 {[%clk
00:12:24]} {[%emt 00:00:07]} Kg7 {[%clk 00:02:47]} {[%emt 00:00:16]} 41. g5
{[%clk 00:10:44]} {[%emt 00:01:50]} hxg5 {[%clk 00:02:07]} {[%emt 00:00:50]} 42.
Rxg5+ {[%clk 00:10:47]} {[%emt 00:00:07]} Kf6 {[%clk 00:02:04]} {[%emt
00:00:11]} 43. Rg2 {[%clk 00:10:11]} {[%emt 00:00:48]} d4 {[%clk 00:01:52]}
{[%emt 00:00:22]} 44. Nf2 {[%clk 00:09:44]} {[%emt 00:00:38]} dxc3 {[%clk
00:01:45]} {[%emt 00:00:17]} 45. Ne4+ {[%clk 00:09:46]} {[%emt 00:00:07]} Ke5
{[%clk 00:01:53]} {[%emt 00:00:02]} 46. Nxc5 {[%clk 00:09:03]} {[%emt
00:00:53]} Kd4 {[%clk 00:01:58]} {[%emt 00:00:03]} 47. Na4 {[%clk 00:09:04]}
{[%emt 00:00:11]} Rh6 {[%clk 00:01:50]} {[%emt 00:00:19]} 48. Kc2 {[%clk
00:08:10]} {[%emt 00:01:04]} Bxb3+ {[%clk 00:01:09]} {[%emt 00:00:50]} 49. Kxb3
{[%clk 00:08:12]} {[%emt 00:00:08]} Kxd3 {[%clk 00:01:18]} {[%emt 00:00:01]} 50.
Rg3 {[%clk 00:08:19]} {[%emt 00:00:01]} Kd4 {[%clk 00:01:23]} {[%emt 00:00:06]}
51. Rxc3 {[%clk 00:08:26]} {[%emt 00:00:04]} Ra6 {[%clk 00:01:01]} {[%emt
00:00:31]} 52. Kxa3 {[%clk 00:07:55]} {[%emt 00:00:39]} Ra8 {[%clk 00:00:59]}
{[%emt 00:00:14]} 53. Rb3 {[%clk 00:07:52]} {[%emt 00:00:13]} Kc4 {[%clk
00:01:01]} {[%emt 00:00:07]} 54. Rb4+ {[%clk 00:07:48]} {[%emt 00:00:16]} Kd3
{[%clk 00:01:03]} {[%emt 00:00:07]} 55. Kb3 {[%clk 00:07:54]} {[%emt 00:00:03]}
Kd2 {[%clk 00:00:54]} {[%emt 00:00:19]} 56. Nb6 {[%clk 00:07:44]} {[%emt
00:00:22]} Ra7 {[%clk 00:00:53]} {[%emt 00:00:07]} 57. a4 {[%clk 00:07:50]}
{[%emt 00:00:08]} Rc7 {[%clk 00:00:57]} {[%emt 00:00:05]} 58. Nc4+ {[%clk
00:07:53]} {[%emt 00:00:08]} Kd3 {[%clk 00:00:59]} {[%emt 00:00:06]} 59. a5
{[%clk 00:07:59]} {[%emt 00:00:06]} Kd4 {[%clk 00:01:06]} {[%emt 00:00:02]} 60.
Ka4 {[%clk 00:06:53]} {[%emt 00:01:18]} Kc5 {[%clk 00:01:12]} {[%emt 00:00:03]}
61. a6 {[%clk 00:06:49]} {[%emt 00:00:14]} Ra7 {[%clk 00:01:19]} {[%emt
00:00:02]} 62. Rb6 {[%clk 00:04:52]} {[%emt 00:02:09]} Kxc4 {[%clk 00:01:14]}
{[%emt 00:00:14]} 63. Ka5 {[%clk 00:04:58]} {[%emt 00:00:04]} Kc5 {[%clk
00:01:22]} {[%emt 00:00:02]} 64. Rb7 {[%clk 00:04:52]} {[%emt 00:00:15]} Ra8
{[%clk 00:01:31]} {[%emt 00:00:03]} 65. Rc7 {[%clk 00:03:58]} {[%emt 00:01:04]}
Kd6 {[%clk 00:01:39]} {[%emt 00:00:02]} 66. Rc1 {[%clk 00:03:30]} {[%emt
00:00:37]} Rb8 {[%clk 00:01:33]} {[%emt 00:00:17]} 67. a7 {[%clk 00:02:53]}
{[%emt 00:00:47]} Rb3 {[%clk 00:01:42]} {[%emt 00:00:01]} 68. Ra1 {[%clk
00:02:51]} {[%emt 00:00:12]} Kc5 {[%clk 00:01:44]} {[%emt 00:00:07]} 69. a8=Q
{[%clk 00:02:46]} {[%emt 00:00:16]} Rb5+ {[%clk 00:01:51]} {[%emt 00:00:02]} 70.
Ka4 {[%clk 00:02:49]} {[%emt 00:00:07]} Rb4+ {[%clk 00:01:58]} {[%emt
00:00:04]} 71. Ka3 {[%clk 00:02:55]} {[%emt 00:00:03]} Rc4 {[%clk 00:02:07]}
{[%emt 00:00:03]} 72. Qc8+ {[%clk 00:02:59]} {[%emt 00:00:05]} Kd4 {[%clk
00:02:16]} {[%emt 00:00:01]} 73. Rd1+ {[%clk 00:03:06]} {[%emt 00:00:03]} Kc3
{[%clk 00:02:21]} {[%emt 00:00:02]} 74. Qh3 {[%clk 00:03:07]} {[%emt 00:00:10]}
Kc2 {[%clk 00:02:23]} {[%emt 00:00:08]} 75. Qd3+ {[%clk 00:03:15]} {[%emt
00:00:03]} 1-0



[ePGN "0.1;DGT LiveChess/2.2.6"]

[Event "MČR družstev mladších žáků 2024"]
[Site "Harrachov, Czech Republic"]
[Date "2024.06.15"]
[Round "5.4"]
[White "Sevcikova Terezie"]
[Black "Gernert Tomas"]
[Result "0-1"]
[TimeControl "25+10"]
[WhiteFideId "23766425"]
[BlackFideId "23750219"]
[WhiteElo "1447"]
[BlackElo "1409"]

1. d4 {[%clk 00:25:17]} {[%emt 00:00:02]} Nf6 {[%clk 00:25:18]} {[%emt
00:00:03]} 2. Bf4 {[%clk 00:25:19]} {[%emt 00:00:09]} c6 {[%clk 00:25:23]}
{[%emt 00:00:05]} 3. e3 {[%clk 00:25:22]} {[%emt 00:00:07]} Qb6 {[%clk
00:25:29]} {[%emt 00:00:04]} 4. b3 {[%clk 00:25:15]} {[%emt 00:00:17]} d5
{[%clk 00:25:31]} {[%emt 00:00:08]} 5. Nd2 {[%clk 00:25:22]} {[%emt 00:00:03]}
Bf5 {[%clk 00:25:07]} {[%emt 00:00:34]} 6. Ngf3 {[%clk 00:25:29]} {[%emt
00:00:03]} e6 {[%clk 00:25:08]} {[%emt 00:00:09]} 7. Be2 {[%clk 00:25:08]}
{[%emt 00:00:29]} Bb4 {[%clk 00:25:00]} {[%emt 00:00:20]} 8. O-O {[%clk
00:25:10]} {[%emt 00:00:08]} Bc3 {[%clk 00:24:46]} {[%emt 00:00:24]} 9. Rb1
{[%clk 00:25:09]} {[%emt 00:00:10]} O-O {[%clk 00:24:39]} {[%emt 00:00:19]} 10.
h3 {[%clk 00:23:49]} {[%emt 00:01:30]} Nbd7 {[%clk 00:23:44]} {[%emt 00:01:05]}
11. b4 {[%clk 00:23:36]} {[%emt 00:00:23]} a5 {[%clk 00:22:14]} {[%emt
00:01:39]} 12. bxa5 {[%clk 00:22:37]} {[%emt 00:01:09]} Qxa5 {[%clk 00:22:17]}
{[%emt 00:00:07]} 13. Rxb7 {[%clk 00:20:30]} {[%emt 00:02:17]} Qxa2 {[%clk
00:21:57]} {[%emt 00:00:31]} 14. Nb1 {[%clk 00:19:42]} {[%emt 00:00:57]} Bxc2
{[%clk 00:20:22]} {[%emt 00:01:44]} 15. Qc1 {[%clk 00:18:21]} {[%emt 00:01:30]}
Bxb1 {[%emt 00:02:06]} 16. Rxb1 {[%clk 00:17:23]} {[%emt 00:00:25]} Ne4 {[%clk
00:17:18]} {[%emt 00:02:04]} 17. Bd3 {[%clk 00:17:08]} {[%emt 00:00:25]} Ndf6
{[%clk 00:16:31]} {[%emt 00:00:57]} 18. Be5 {[%clk 00:16:20]} {[%emt 00:00:58]}
Qa3 {[%clk 00:15:18]} {[%emt 00:01:23]} 19. Bxf6 {[%clk 00:15:56]} {[%emt
00:00:33]} Nxf6 {[%clk 00:14:58]} {[%emt 00:00:32]} 20. Qc2 {[%clk 00:15:56]}
{[%emt 00:00:06]} Rfb8 {[%clk 00:13:36]} {[%emt 00:01:35]} 21. Ne5 {[%clk
00:13:57]} {[%emt 00:02:10]} c5 {[%clk 00:11:44]} {[%emt 00:02:02]} 22. Nf3
{[%clk 00:13:04]} {[%emt 00:01:03]} c4 {[%clk 00:11:15]} {[%emt 00:00:38]} 23.
Be2 {[%clk 00:13:09]} {[%emt 00:00:04]} Rb2 {[%clk 00:10:49]} {[%emt 00:00:37]}
24. Rxb2 {[%clk 00:13:01]} {[%emt 00:00:18]} Qxb2 {[%clk 00:10:52]} {[%emt
00:00:07]} 25. Qxb2 {[%clk 00:13:04]} {[%emt 00:00:07]} Bxb2 {[%clk 00:11:01]}
{[%emt 00:00:01]} 26. Rb1 {[%clk 00:13:09]} {[%emt 00:00:03]} Ra1 {[%clk
00:10:30]} {[%emt 00:00:42]} 27. Rxa1 {[%clk 00:13:11]} {[%emt 00:00:09]} Bxa1
{[%clk 00:10:39]} {[%emt 00:00:02]} 28. Bd1 {[%clk 00:13:19]} {[%emt 00:00:01]}
Kf8 {[%clk 00:09:18]} {[%emt 00:01:31]} 29. Kf1 {[%clk 00:13:25]} {[%emt
00:00:04]} Ne4 {[%clk 00:09:12]} {[%emt 00:00:17]} 30. Bc2 {[%clk 00:13:23]}
{[%emt 00:00:11]} f5 {[%clk 00:07:42]} {[%emt 00:01:41]} 31. Ke2 {[%clk
00:13:13]} {[%emt 00:00:19]} Ke7 {[%clk 00:07:30]} {[%emt 00:00:23]} 32. Ne5
{[%clk 00:13:15]} {[%emt 00:00:09]} Nd6 {[%clk 00:05:48]} {[%emt 00:01:52]} 33.
f4 {[%clk 00:12:40]} {[%emt 00:00:45]} Nb5 {[%clk 00:05:48]} {[%emt 00:00:09]}
34. Ke1 {[%clk 00:12:42]} Na3 {[%clk 00:05:48]} 35. Kd2 {[%clk 00:12:42]} c3+
{[%clk 00:04:45]} {[%emt 00:03:06]} 36. Kd3 {[%clk 00:10:40]} {[%emt 00:00:47]}
Nxc2 {[%clk 00:04:37]} {[%emt 00:00:18]} 37. Kxc2 {[%clk 00:10:48]} {[%emt
00:00:02]} Bb2 {[%clk 00:04:20]} {[%emt 00:00:27]} 38. g4 {[%clk 00:10:17]}
{[%emt 00:00:41]} fxg4 {[%clk 00:03:59]} {[%emt 00:00:31]} 39. hxg4 {[%clk
00:10:25]} {[%emt 00:00:03]} h6 {[%clk 00:03:46]} {[%emt 00:00:23]} 40. Nc6+
{[%clk 00:08:58]} {[%emt 00:01:36]} Kf6 {[%clk 00:03:43]} {[%emt 00:00:12]} 41.
Ne5 {[%clk 00:08:58]} {[%emt 00:00:10]} g6 {[%clk 00:03:25]} {[%emt 00:00:29]}
42. Nd7+ {[%clk 00:08:57]} {[%emt 00:00:11]} Kg7 {[%clk 00:03:29]} {[%emt
00:00:05]} 43. Ne5 {[%clk 00:09:04]} {[%emt 00:00:03]} h5 {[%clk 00:03:24]}
{[%emt 00:00:16]} 44. g5 {[%clk 00:08:47]} {[%emt 00:00:26]} h4 {[%clk
00:03:12]} {[%emt 00:00:23]} 45. Nf3 {[%clk 00:07:58]} {[%emt 00:01:00]} h3
{[%clk 00:03:15]} {[%emt 00:00:07]} 46. Nh2 {[%clk 00:08:06]} Kf7 {[%clk
00:03:14]} {[%emt 00:00:11]} 47. Ng4 {[%clk 00:08:06]} {[%emt 00:00:11]} Ke7
{[%clk 00:03:18]} {[%emt 00:00:06]} 48. Nh2 {[%clk 00:08:10]} {[%emt 00:00:06]}
Kd6 {[%clk 00:03:26]} {[%emt 00:00:02]} 49. Ng4 {[%clk 00:08:15]} {[%emt
00:00:04]} Kc6 {[%clk 00:03:34]} {[%emt 00:00:02]} 50. Nh2 {[%clk 00:08:20]}
{[%emt 00:00:06]} Kb5 {[%clk 00:03:42]} {[%emt 00:00:02]} 51. Ng4 {[%clk
00:08:25]} {[%emt 00:00:05]} Kb4 {[%clk 00:03:11]} {[%emt 00:00:41]} 52. Nh2
{[%clk 00:08:05]} {[%emt 00:00:29]} Kc4 {[%clk 00:03:14]} {[%emt 00:00:07]} 53.
Ng4 {[%clk 00:08:08]} {[%emt 00:00:07]} Kb4 {[%clk 00:02:53]} {[%emt 00:00:31]}
54. Nh2 {[%clk 00:08:16]} {[%emt 00:00:02]} Ba3 {[%clk 00:02:38]} {[%emt
00:00:25]} 55. Ng4 {[%clk 00:07:56]} {[%emt 00:00:30]} Kc4 {[%clk 00:02:38]}
{[%emt 00:00:10]} 56. Nh2 {[%clk 00:07:59]} {[%emt 00:00:07]} Bd6 {[%clk
00:02:41]} {[%emt 00:00:07]} 57. Ng4 {[%clk 00:08:04]} {[%emt 00:00:06]} Bxf4
{[%clk 00:02:13]} {[%emt 00:00:37]} 58. exf4 {[%clk 00:07:59]} {[%emt
00:00:14]} Kxd4 {[%clk 00:02:22]} {[%emt 00:00:02]} 59. Nh2 {[%clk 00:07:53]}
{[%emt 00:00:16]} Kc4 {[%clk 00:02:26]} {[%emt 00:00:06]} 60. Nf3 {[%clk
00:07:49]} {[%emt 00:00:13]} d4 {[%clk 00:02:21]} {[%emt 00:00:16]} 61. Ne5+
{[%clk 00:07:49]} {[%emt 00:00:10]} Kd5 {[%clk 00:02:15]} {[%emt 00:00:15]} 62.
Nf3 {[%clk 00:07:57]} {[%emt 00:00:02]} Ke4 {[%clk 00:02:22]} {[%emt 00:00:03]}
63. Nh2 {[%clk 00:07:47]} {[%emt 00:00:20]} Kxf4 {[%clk 00:02:26]} {[%emt
00:00:07]} 64. Kd3 {[%clk 00:07:50]} {[%emt 00:00:07]} e5 {[%clk 00:02:29]}
{[%emt 00:00:07]} 65. Kc2 {[%clk 00:07:58]} {[%emt 00:00:01]} Kxg5 {[%clk
00:02:37]} {[%emt 00:00:03]} 66. Kd3 {[%clk 00:08:06]} Kf4 {[%clk 00:02:45]}
{[%emt 00:00:03]} 67. Kc2 {[%clk 00:08:15]} {[%emt 00:00:01]} Kg3 {[%clk
00:02:50]} {[%emt 00:00:05]} 68. Nf1+ {[%clk 00:08:11]} {[%emt 00:00:13]} Kf2
{[%clk 00:02:59]} {[%emt 00:00:01]} 69. Nh2 {[%clk 00:08:20]} {[%emt 00:00:01]}
Kg2 {[%clk 00:03:08]} {[%emt 00:00:02]} 70. Ng4 {[%clk 00:08:27]} {[%emt
00:00:02]} h2 {[%clk 00:03:13]} {[%emt 00:00:05]} 71. Nxh2 {[%emt 00:00:02]}
Kxh2 {[%emt 00:00:01]} 72. Kd3 {[%clk 00:08:33]} {[%emt 00:00:01]} g5 {[%clk
00:03:21]} {[%emt 00:00:02]} 73. Kc2 {[%clk 00:08:42]} {[%emt 00:00:01]} g4
{[%clk 00:03:30]} 0-1



[ePGN "0.1;DGT LiveChess/2.2.6"]

[Event "MČR družstev mladších žáků 2024"]
[Site "Harrachov, Czech Republic"]
[Date "2024.06.15"]
[Round "5.5"]
[White "Kusova Nikola"]
[Black "Chauvin Simon"]
[Result "1-0"]
[TimeControl "25+10"]
[WhiteFideId "23733705"]
[BlackFideId "23739053"]
[WhiteElo "1353"]
[BlackElo "1085"]

1. e4 {[%clk 00:25:17]} {[%emt 00:00:03]} e5 {[%clk 00:25:26]} {[%emt
00:00:04]} 2. Nc3 {[%clk 00:25:25]} {[%emt 00:00:02]} Nc6 {[%clk 00:25:28]}
{[%emt 00:00:09]} 3. Bc4 {[%clk 00:25:33]} {[%emt 00:00:02]} Nf6 {[%clk
00:25:27]} {[%emt 00:00:11]} 4. d3 {[%clk 00:25:41]} {[%emt 00:00:02]} Bb4
{[%clk 00:25:21]} {[%emt 00:00:16]} 5. Nge2 {[%clk 00:25:45]} d6 {[%clk
00:25:20]} {[%emt 00:00:16]} 6. O-O {[%clk 00:25:47]} O-O {[%clk 00:24:38]}
{[%emt 00:01:01]} 7. f4 {[%clk 00:25:39]} {[%emt 00:00:18]} Bg4 {[%clk
00:24:19]} {[%emt 00:00:28]} 8. h3 {[%clk 00:24:19]} {[%emt 00:01:30]} Bh5
{[%clk 00:24:18]} {[%emt 00:00:11]} 9. g4 {[%clk 00:24:15]} {[%emt 00:00:15]}
Nxg4 {[%clk 00:24:18]} {[%emt 00:00:10]} 10. hxg4 {[%clk 00:24:20]} {[%emt
00:00:06]} Bxg4 {[%emt 00:00:56]} 11. Qe1 {[%emt 00:00:32]} Bxc3 {[%clk
00:23:52]} {[%emt 00:00:18]} 12. Nxc3 {[%emt 00:00:04]} Nd4 {[%emt 00:04:02]}
13. Qg3 {[%clk 00:19:24]} {[%emt 00:00:26]} Nxc2 {[%clk 00:21:18]} {[%emt
00:02:48]} 14. Qxg4 {[%clk 00:19:11]} {[%emt 00:00:23]} Nxa1 {[%clk 00:21:13]}
{[%emt 00:00:15]} 15. Qg2 {[%clk 00:19:04]} {[%emt 00:00:11]} exf4 {[%emt
00:01:23]} 16. Bxf4 {[%emt 00:01:41]} Qh4 {[%emt 00:00:59]} 17. Bg5 {[%emt
00:00:31]} Qh5 {[%emt 00:00:29]} 18. Rxa1 {[%emt 00:00:43]} Qg6 {[%emt
00:00:23]} 19. Rf1 {[%emt 00:00:40]} h6 {[%emt 00:00:02]} 20. Be7 {[%emt
00:00:18]} Qxg2+ {[%clk 00:17:22]} {[%emt 00:00:14]} 21. Kxg2 {[%emt 00:01:02]}
Rfc8 {[%emt 00:00:10]} 22. Bxf7+ {[%emt 00:00:33]} Kh7 {[%emt 00:01:45]} 23.
Ne2 {[%emt 00:01:08]} c6 {[%emt 00:00:39]} 24. Bxd6 {[%clk 00:15:34]} {[%emt
00:00:12]} Rd8 {[%clk 00:15:01]} {[%emt 00:00:06]} 25. e5 {[%clk 00:15:41]}
{[%emt 00:00:03]} b6 {[%clk 00:13:26]} {[%emt 00:01:45]} 26. Nf4 {[%clk
00:15:36]} {[%emt 00:00:14]} c5 {[%clk 00:12:42]} {[%emt 00:00:54]} 27. Ne6
{[%clk 00:15:44]} {[%emt 00:00:02]} Rac8 {[%clk 00:10:53]} {[%emt 00:01:59]} 28.
Nxd8 {[%clk 00:15:34]} {[%emt 00:00:21]} Rxd8 {[%clk 00:10:58]} {[%emt
00:00:05]} 29. e6 {[%clk 00:14:47]} {[%emt 00:00:56]} Rxd6 {[%clk 00:09:27]}
{[%emt 00:01:41]} 30. e7 {[%clk 00:14:55]} {[%emt 00:00:01]} Rxd3 {[%clk
00:09:34]} {[%emt 00:00:03]} 31. e8=Q {[%clk 00:15:03]} {[%emt 00:00:03]} Rd2+
{[%clk 00:09:40]} {[%emt 00:00:04]} 32. Kg1 {[%clk 00:15:02]} {[%emt 00:00:10]}
Rxb2 {[%clk 00:09:31]} {[%emt 00:00:19]} 33. Bg6# {[%clk 00:15:10]} {[%emt
00:00:02]} 1-0



[ePGN "0.1;DGT LiveChess/2.2.6"]